Cogmind - Beta 15 @@@ ROGUE MODE // 2025.10.12 @ 16:19:23 Player: DietSnapple Result: Destroyed by Autobeam Turret with Autobeam Performance ------------- Evolutions (0) 0 Regions Visited (3) 600 Robots Destroyed (16) 80 Value Destroyed (386) 386 Prototype IDs (4) 80 Alien Tech Used (0) 0 Bonus (68) 68 TOTAL SCORE: 1214 Bonus ------- Follower Combat Kills 68 Cogmind --------- Core Integrity 0/250 Matter 247/300 Energy 250/250 System Corruption 0% Temperature Cool (12) Movement Treading (160) Location -10/Subcaves Parts ------- > --- POWER (1) -------- Ion Engine > --- PROPULSION (2) --- Light Treads Light Treads > --- UTILITY (2) ------ Large Storage Unit Splice Drone Bay (3/6) > --- WEAPON (2) ------- Rocket Launcher > --- INVENTORY (15) --- Aluminum Leg Aluminum Leg Compact Wheel Improved Heat Sink Small Storage Unit Medium Storage Unit Structural Scanner Experimental Sensor Array Subdweller Machine Gun Grenade Launcher Grenade Launcher Peak State ------------ > --- POWER ------------ Ion Engine > --- PROPULSION ------- Compact Wheel Compact Wheel > --- UTILITY ---------- Large Storage Unit Experimental Sensor Array > --- WEAPON ----------- EM Pulse Gun EM Pulse Gun > --- INVENTORY -------- Light Treads Light Treads Aluminum Leg Aluminum Leg Improved Heat Sink Small Storage Unit Medium Storage Unit Structural Scanner Splice Drone Bay Grenade Launcher Grenade Launcher Datajack [Rating: 17] Favorites ----------- Power Ion Engine Engine Ion Engine Propulsion Light Treads Treads Light Treads Wheel Compact Wheel Utility Large Storage Unit Device Splice Drone Bay Storage Large Storage Unit Weapon Grenade Launcher Energy Gun EM Pulse Gun Ballistic Gun Light Assault Rifle Launcher Grenade Launcher Special Melee Weapon Datajack Build | -11 -10 -10 -10 ------- Run | Yrd Mat Min Sub Slots Evolved . | . . . . Power . | . . . . Propulsion . | . . . . Utility . | . . . . Weapon . | . . . . Parts Attached 19 | 7 4 2 6 Power 2 | 1 1 . . Engine 2 | 1 1 . . Core . | . . . . Reactor . | . . . . Propulsion 4 | 2 . . 2 Treads 2 | . . . 2 Leg . | . . . . Wheel 2 | 2 . . . Hover . | . . . . Flight . | . . . . Utility 4 | 1 1 2 . Device 2 | . . 2 . Storage 2 | 1 1 . . Processor . | . . . . Hackware . | . . . . Protection . | . . . . Artifact . | . . . . Weapon 9 | 3 2 . 4 Energy Gun 3 | 1 2 . . Energy Cannon . | . . . . Ballistic Gun 2 | 2 . . . Ballistic Cannon . | . . . . Launcher 3 | . . . 3 Special Weapon . | . . . . Impact Weapon . | . . . . Slashing Weapon . | . . . . Piercing Weapon . | . . . . Special Melee Weapon 1 | . . . 1 Unidentified Prototypes 2 | . . 2 . Parts Lost 6 | . 1 3 2 Power 1 | . 1 . . Propulsion 1 | . . 1 . Utility . | . . . . Weapon 4 | . . 2 2 Highest Loss Streak 3 | . 1 3 1 To Critical Strikes . | . . . . Average Backups 10 | 2 8 12 10 Power . | . . . . Propulsion 3 | 2 4 4 3 Utility 4 | . 2 4 5 Weapon 1 | . . 2 1 Tool/Special . | . . . . Unused Backups 7 | . . . 7 Power . | . . . . Propulsion 2 | . . . 2 Utility 3 | . . . 3 Weapon 2 | . . . 2 Tool/Special . | . . . . Average Slot Usage (%) 91 | . 98 81 90 Engine 13 | . 13 14 14 Treads 14 | . . . 26 Wheel 12 | . 28 24 . Device 7 | . . 4 13 Storage 17 | . 26 16 14 Energy Gun 8 | . 15 21 . Ballistic Gun 3 | . 12 . . Launcher 10 | . . . 20 Peak Build Rating 17 | 6 8 17 16 Average Rating 11 | 3 7 9 14 On Entrance 5 | . 6 8 6 Naked Turns . | . . . . Heaviest Build 40 | 12 34 37 40 Greatest Support 40 | 32 32 32 40 Greatest Overweight (x) 1 | . 1 1 1 Average Overweight (x) . | . . . . Largest Inventory Capacity 15 | 8 15 15 15 Average Capacity 14 | 6 14 15 15 Most Carried 14 | 5 10 14 14 Average Carried 10 | 3 8 12 10 Final Capacity 15 | 8 15 15 15 Final Carried 14 | 5 10 14 11 Class Distribution -------------------- 100% | Mutant Dominant Class ---------------- Mutant | -10/Materials Mutant | -10/Mines Mutant | -10/Subcaves Resources | -11 -10 -10 -10 ----------- Run | Yrd Mat Min Sub Matter Collected 498 | 231 143 5 119 Remotely . | . . . . Salvage Created 425 | . 254 88 83 Parts 25 | . 12 4 9 Haulers Intercepted 1 | . 1 . . Recyclers Shooed . | . . . . Parts Field Recycled . | . . . . Retrieved Matter . | . . . . Parts Self-Destructed 14 | . . . 14 Prevented . | . . . . Kills | -11 -10 -10 -10 ------- Run | Yrd Mat Min Sub Combat Hostiles Destroyed 16 | . 6 5 5 Guns 7 | . 6 1 . AOE 9 | . . 4 5 Classes Destroyed 8 | . 5 1 2 Worker 1 | . 1 . . Tunneler 1 | . 1 . . Hauler 1 | . 1 . . Drone 2 | . . . 2 Swarmer 6 | . 3 . 3 Grunt 5 | . 3 2 . Subdweller 2 | . . . 2 Assembled 3 | . . 3 . Best Kill Streak 5 | . 3 5 3 Combat Bots Only 5 | . 3 5 3 Max Kills in Single Turn 5 | . 1 5 3 Gunslinging . | . . . . Exploded 4 | . . 4 3 Melee . | . . . . Uniques/NPCs Destroyed . | . . . . Combat | -11 -10 -10 -10 -------- Run | Yrd Mat Min Sub Hostile Shots Fired 85 | . 51 6 28 Missed 26 | . 16 1 9 Hits 59 | . 35 5 19 Projectile 59 | . 35 5 19 AOE 1 | . . 1 . Critical Strikes 2 | . 2 . . Damage Taken 922 | . 413 185 324 Core 254 | . 124 66 64 Absorbed by Shields . | . . . . Core Remaining (%) 100 | 100 . . . Volleys Fired 55 | . 45 3 7 Largest 2 | . 2 2 2 Hottest 80 | . 80 80 60 Shots Fired 106 | . 90 6 10 Gun 96 | . 90 6 . Cannon . | . . . . Launcher 10 | . . . 10 Special . | . . . . Kinetic 66 | . 66 . . Thermal . | . . . . Explosive 10 | . . . 10 Electromagnetic 30 | . 24 6 . Robot Hit Streak 8 | . 8 3 3 Robot Miss Streak 3 | . 3 1 1 Penetration Max . | . . . . Secondary Targets 2 | . 1 1 . Max Gunslinging Chain 1 | . 1 1 . Shots Hit Robots 60 | . 52 4 4 Core Hits 35 | . 18 6 11 Critical Kills . | . . . . Critical Parts Destroyed . | . . . . Critical Strikes . | . . . . Melee Attacks 1 | . . . 1 Impact . | . . . . Slashing . | . . . . Piercing . | . . . . Sneak Attacks 1 | . . . 1 Combat Hostiles 1 | . . . 1 Follow-up Attacks . | . . . . Damage Inflicted 1353 | . 600 319 434 Guns 558 | . 505 53 . Cannons . | . . . . Explosions 795 | . 95 266 434 Melee . | . . . . Ramming . | . . . . Kinetic 349 | . 349 . . Thermal 361 | . 95 266 . Explosive 434 | . . . 434 Electromagnetic 209 | . 156 53 . Impact . | . . . . Slashing . | . . . . Piercing . | . . . . Highest Corruption . | . . . . Average Corruption . | . . . . Corruption Purged . | . . . . Corruption Blocked . | . . . . Overload Shots . | . . . . Overflow Damage 78 | . . 57 21 Projectiles . | . . . . Explosions 78 | . . 57 21 Melee . | . . . . Knockbacks . | . . . . Impact . | . . . . Kinetic . | . . . . Secondary . | . . . . Self-Inflicted Damage 159 | . 37 78 44 Shots 5 | . 1 2 2 Rammed . | . . . . Targets Rammed . | . . . . Kicked . | . . . . Crushed . | . . . . Highest Temperature 102 | . 90 102 . Average Temperature 30 | . 27 49 . Received Heat Transfer 264 | . 159 24 81 Siege Activations . | . . . . Martial Activations . | . . . . Shielding Activations . | . . . . Robots Disrupted . | . . . . Combat Hostiles . | . . . . Robots Corrupted . | . . . . Combat Hostiles . | . . . . Parts Fried 2 | . 1 1 . Impact Corruptions . | . . . . Robots Melted . | . . . . Combat Hostiles . | . . . . Parts Melted . | . . . . Heat Transferred 450 | . 150 300 . Parts Sabotaged . | . . . . Parts Stolen . | . . . . Parts Stripped . | . . . . Power Chain Reactions 2 | . 2 . . Alert | -11 -10 -10 -10 ------- Run | Yrd Mat Min Sub Maximum Alert Level . | . . . . Low Security (%) 100 | 100 100 100 . Level 1 . | . . . . Level 2 . | . . . . Level 3 . | . . . . Level 4 . | . . . . Level 5 . | . . . . High Security . | . . . . Max Security . | . . . . Peak Influence 75 | . 75 73 . Initial . | . . . . Average 19 | . 28 10 . Influence Increases 534 | . 197 93 244 Destroy 0b10 Robot/C 260 | . 120 40 100 Destroy 0b10 Robot/NC 15 | . 15 . . Destroy Leader 42 | . 22 10 10 Allied During Kill 14 | . . . 14 Successful Hack 5 | . 5 . . Disable Machine 60 | . 30 30 . Destroy Structure 18 | . 5 13 . Lose Combat Pursuer 120 | . . . 120 Influence Decreases 375 | . 197 60 118 Entered New Map 18 | . . . 18 Time Decay 317 | . 187 40 90 Lost Part 40 | . 10 20 10 Squads Dispatched . | . . . . Investigation . | . . . . Extermination . | . . . . Reinforcement . | . . . . Assault . | . . . . Garrison . | . . . . Intercept . | . . . . Searches Triggered . | . . . . Construction Impeded . | . . . . Haulers Reinforced . | . . . . Active Scanning Responses . | . . . . Cargo Convoy Interrupts . | . . . . Stealth | -11 -10 -10 -10 --------- Run | Yrd Mat Min Sub Distress Signals 1 | . 1 . . Communications Jammed . | . . . . Distress Signals . | . . . . Times Spotted 40 | . 13 10 17 Peak Tracking Total 5 | . 4 5 4 Tactical Retreats 4 | . . 2 2 Traps | -11 -10 -10 -10 ------- Run | Yrd Mat Min Sub Traps Triggered 2 | . . . 2 Indirectly . | . . . . Trap Hack Attempts . | . . . . Triggered . | . . . . Disarmed . | . . . . Reprogrammed . | . . . . Reused . | . . . . Traps Extracted . | . . . . Installed . | . . . . Triggered . | . . . . Machines | -11 -10 -10 -10 ---------- Run | Yrd Mat Min Sub Machines Disabled 4 | . 2 2 . Max in Single Turn 2 | . 2 2 . Machines Repaired . | . . . . Machines Dismantled . | . . . . Machines Sabotaged . | . . . . Overloaded Fab Kills . | . . . . Hacking | -11 -10 -10 -10 --------- Run | Yrd Mat Min Sub Machines Accessed 3 | . 1 1 1 Terminals 1 | . 1 . . Fabricators . | . . . . Repair Stations . | . . . . Recycling Units . | . . . . Scanalyzers . | . . . . Garrison Access . | . . . . Total Hacks 8 | . 3 1 4 Successful 6 | . 1 1 4 Failed 2 | . 2 . . Catastrophic . | . . . . Database Lockouts . | . . . . Manual . | . . . . Terminals 3 | . 3 . . Fabricators . | . . . . Repair Stations . | . . . . Recycling Units . | . . . . Scanalyzers . | . . . . Garrison Access . | . . . . Terminal Hacks 6 | . 1 1 4 Record 4 | . . . 4 Prototype ID Bank 1 | . 1 . . Open Door 1 | . . 1 . Fabricator Hacks . | . . . . Repair Station Hacks . | . . . . Recycling Unit Hacks . | . . . . Scanalyzer . | . . . . Garrison Access Hacks . | . . . . Unauthorized Hacks . | . . . . Terminals . | . . . . Fabricators . | . . . . Repair Stations . | . . . . Recycling Units . | . . . . Scanalyzers . | . . . . Garrison Access . | . . . . Data Cores Recovered . | . . . . Used . | . . . . Hacking Detections 1 | . 1 . . Full Trace Events 1 | . 1 . . Feedback Events . | . . . . Feedback Blocked . | . . . . Robot Schematics Acquired . | . . . . Robots Built . | . . . . Authchips . | . . . . Time . | . . . . Total Robot Build Rating . | . . . . Part Schematics Acquired . | . . . . Parts Built . | . . . . Authchips . | . . . . Time . | . . . . Total Part Build Rating . | . . . . Parts Repaired . | . . . . Time . | . . . . Parts Recycled . | . . . . Recycled Matter . | . . . . Retrieved Matter . | . . . . Retrieved Components . | . . . . Parts Scanalyzed . | . . . . Part Schematics Acquired . | . . . . Parts Damaged . | . . . . Bothacking | -11 -10 -10 -10 ------------ Run | Yrd Mat Min Sub Used RIF Installer . | . . . . Robots Hacked . | . . . . Non-combat . | . . . . Combat . | . . . . Robot Hacks Applied . | . . . . Relay Couplers Released . | . . . . Fabnet Peak Effective % . | . . . . Robots Rewired . | . . . . Allies Hacked . | . . . . Hacks Repelled . | . . . . Allies | -11 -10 -10 -10 -------- Run | Yrd Mat Min Sub Total Allies 2 | . . . 2 Largest Group 1 | . . . 1 Highest-Rated Group 15 | . . . 15 Highest-Rated Ally 15 | . . . 15 Total Orders 6 | . . 1 5 EXPLORE 3 | . . . 3 RETURN 3 | . . 1 2 Ally Attacks 33 | . . . 33 Total Damage 152 | . . . 152 Kills 2 | . . . 2 Allies Corrupted 1 | . . . 1 Allies Melted . | . . . . Intel | -11 -10 -10 -10 ------- Run | Yrd Mat Min Sub Active Infowar (turns) 5 | . . 5 . Sensors 5 | . . 5 . Robot Analysis Total . | . . . . Derelict Logs Recovered 1 | . . . 1 Drone Launches 47 | . . 6 41 Drone Recoveries 44 | . . 6 38 Exploration | -11 -10 -10 -10 ------------- Run | Yrd Mat Min Sub Turns Passed 2150 | 90 562 397 1101 Spaces Moved 1456 | 78 369 348 661 Core 5 | 5 . . . Treads 613 | . . . 613 Legs . | . . . . Wheels 838 | 73 369 348 48 Hover . | . . . . Flight . | . . . . Fastest Speed 50 | 50 100 100 115 Average Speed 130 | 96 109 110 156 Slowest Speed 160 | 100 115 115 160 Overloaded Moves . | . . . . Propulsion Burnouts . | . . . . Robots Hopped . | . . . . Potential Cave-ins . | . . . . Cave-ins Triggered . | . . . . Exploration Rate (%) 40 | 4 50 59 50 Regions Visited 3 Branch Regions 2 Pre-discovered Areas . | . . . . Known Exits Taken . | . . . . Unknown Exits Taken 3 | 1 1 1 . Scrap Searched 1 | . . 1 . Spaces Dug 10 | . . . 10 Terrain Destroyed 60 | . 4 17 39 Melee . | . . . . Projectile . | . . . . AOE 60 | . 4 17 39 Terrain Rammed . | . . . . Walls Destroyed . | . . . . Machines Disabled . | . . . . Actions | -11 -10 -10 -10 --------- Run | Yrd Mat Min Sub Total 1607 | 89 448 356 714 Wait 59 | . 25 . 34 Move 1453 | 77 368 347 661 Hop . | . . . . Pick Up 14 | 5 6 1 2 Fast Attach 9 | 6 1 2 . Attach 6 | . 1 . 5 Detach 3 | . . 3 . Swap 6 | 1 2 . 3 Drop . | . . . . Fire 55 | . 45 3 7 Melee 1 | . . . 1 Ram . | . . . . Kick . | . . . . Crush . | . . . . Escape Stasis . | . . . . Rewire 1 | . . . 1 Trap . | . . . . Miscellaneous . | . . . . Route ------- -11/Scrapyard -10/Materials (discovered 2 exits: [*Mat] / *Min) -10/Mines (discovered 3 exits: [*Mat x2] / *Sub) -10/Subcaves (discovered 3 exits: *Mat x2 / *Rec) History --------- Turn | Location | Event 14 | -11/Scrapyard | Discovered new exit (range 16) 91 | -11/Scrapyard | Entered Materials 310 | -10/Materials | Build established: Mutant 474 | -10/Materials | Discovered new exit (range 13) 564 | -10/Materials | Discovered new exit (range 15) 653 | -10/Materials | Entered Mines 698 | -10/Mines | Found the Drone Emporium 708 | -10/Mines | Found Prototype Device 708 | -10/Mines | Identified Splice Drone Bay 747 | -10/Mines | Discovered new exit (range 11) 828 | -10/Mines | Found a damaged Exp. Sensor Array with a note attached 833 | -10/Mines | Found Prototype Device 833 | -10/Mines | Identified Exp. Sensor Array 843 | -10/Mines | Discovered new exit (range 9) 900 | -10/Mines | Received a Rocket Launcher from a helpful Derelict 928 | -10/Mines | Discovered new exit (range 10) 940 | -10/Mines | Assembled infested the area 945 | -10/Mines | Assisted by a Guerilla fighting off Assembled 948 | -10/Mines | Core integrity fell below 50% 977 | -10/Mines | Found DCF Scrap (15 items) 997 | -10/Mines | Lost 3 parts (1n2w) 1050 | -10/Mines | Entered Subcaves 1056 | -10/Subcaves | Learned 2 Materials zone layouts 1267 | -10/Subcaves | A swath of the cavern ceiling suddenly collapsed 1514 | -10/Subcaves | Shifting Twisted Machinery released Sub. Monowheel 1541 | -10/Subcaves | Visited Clippyterm 1546 | -10/Subcaves | Identified exit to Recycling 1546 | -10/Subcaves | Identified exit to Materials 1546 | -10/Subcaves | Learned 40 Factory zone layouts 1611 | -10/Subcaves | Core integrity fell below 20% 2151 | -10/Subcaves | Destroyed by Autobeam Turret with Autobeam Last Messages --------------- 02129_ Splice Drone retrieved by Splice Drone Bay (repair cost: 9). 02130_ Splice Drone retrieved by Splice Drone Bay (repair cost: 2). 02134_ Splice Drone released from Splice Drone Bay. 02138_ Splice Drone injecting Autobeam Turret... 02139_ Splice Drone retrieved by Splice Drone Bay (repair cost: 2). 02139_ Splice Drone injecting Autobeam Turret... 02141_ Splice Drone retrieved by Splice Drone Bay (repair cost: 13). 02141_ Splice Drone retrieved by Splice Drone Bay (repair cost: 2). 02144_ Splice Drone released from Splice Drone Bay. 02146_ Splice Drone injecting Autobeam Turret... 02147_ Splice Drone released from Splice Drone Bay. 02147_ Splice Drone injecting Autobeam Turret... 02148_ Splice Drone released from Splice Drone Bay. 02148_ Splice Drone retrieved by Splice Drone Bay (repair cost: 7). 02148_ Splice Drone destroyed. 02148_ Datajack destroyed. 02148_ Destroyed Datajack. 02148_ Splice Drone injecting Autobeam Turret... 02149_ Splice Drone retrieved by Splice Drone Bay (repair cost: 6). 02150_ Splice Drone retrieved by Splice Drone Bay (repair cost: 11). Map ----- +----------------------------------------------------+ | ?????????????????????? ? ???????? ##????????????? | | ?????????????????????? ??????? #????????????? | | ??????????????????????? " #????? #####????????? | | ???????????????????????" " ???? #????????? | | ??????????????????????# ##??# #????????? | | ??????????????????????# " # ?# #????????? | | ??????????????????????? & ## #????????? | | ???????????????????????????# # #????????? | | ????????????????????????????# %######????????? | | ??????????????????????????### # # #?????????????? | | ??????????????????????????# ## ##????????????? | | ??????????????????????????# ### #????????????? | | ??????????????????????###???# ##????????????? | | ??????????????????#####>##### #?????????????? | | ??????????????????#"""" """"# #?????????????? | | ??????????????????#" " " "##### #?????????????? | | ??????????????????#" t t "#???# ##????????????? | | ??????????????????# #???# #????????????? | | ??????????????????# #???## #????????????? | | ????????????##????#" "#???# #????????????? | | ????????????# ####### ####???## #????????????? | | ?????????????# ??# [ = #?????# #??####??????? | | ??????????????# ### * #?????# #?? # ###????? | | ??????????????# ###???# ### ###### | | ???????##?????# #???## # # | | ???????# ##??# # @ #????# | | ??????## ### ##???## | | ?????## #????##[! | | ?????# % #?#####%! #?# | | ?????# ## ## ### [ ### | | ???????????# ### #?# | | ???????????# ## ### % #?# | | ???????????#??#### ## % #### | | ?????????????????## # ### | | ??????????????????# # | | ??????????????????# ## | | ??????????????????# #### ## | | ??????????????????# ### ###??## ## ## | | ????????????????? #?###?????###### | | ??????????????? ##??????????????## | | ?????????????? #????????????????# | | ????????????? ##????????????????## | | ????????????# ##??????????????????##### # | | ????????????##### #???????????????????????##### | | ????????????????## ????????????????????????????? | | ?????????????????# ????????????????????????????? | | ?????????????????# ????????????????????????????? | | ?????????????????# ????????????????????????????? | | ??????????????????? ????????????????????????????? | | ?????????????????????????????????????????????????? | +----------------------------------------------------+ Best States ------------- Heat Dissipation 25 Energy Generation 10 Energy Capacity 250 Matter Stores 300 Matter Capacity 300 Sight Range 16 Terrain Scan Density 10 Evasion (%) 40 Recoil Reduction 2 Item Schematics ----------------- None Robot Schematics ------------------ None Fabricated ------------ Nothing Repaired ---------- Nothing Alien Tech Used ----------------- None Achievements -------------- Factory Defaults Release The Drones! Challenges ------------ None Game ------ Seed LayeredBladeReactor Manual? 0 Play Time 00:16:18 Cumulative 38.0 hours Start 2025.10.11 @ 23:37:39 End 2025.10.12 @ 16:19:23 Sessions 1 Manual Loads 0 Difficulty Rogue Special Mode None Game No. 91 Rogue 84 Adventurer 7 Explorer 0 Win Type - Total 1 Types 1/0/0/0/0/0/0/0/0/0 Lore% 9 Gallery% 31 Achievement% 31 Wizard Run 0 Options --------- Layout 0 ASCII 0 Keyboard 1 Movement Vi Keybinds 0 Fullscreen 1 Font 18/SmallcapsGlow Map View 112x50 Zoom Use 0% Tactical HUD 1 Map Filters NONE Filters NONE Steam X RUN: b5bf3c5e-a868-4c27-be89-1284f6de3df0